bitfinex-derivatives/quotes_BNBF0:USTF0_20250111
["timestamp","ask_amount","ask_price","bid_price","bid_amount"]
[1736609967361,1.07471216,695.82,694.74,0.28101506]
[1736609967558,0.26429576,695.81,694.74,0.28101506]
[1736609967758,1.07471216,695.8,694.74,0.28101506]
[1736609968565,1.07471216,695.79,694.74,0.28101506]
[1736609970769,1.07471216,695.78,694.74,0.28101506]
[1736609971869,1.07471216,695.76,694.74,0.28101506]
[1736609973373,1.07471216,695.75,694.74,0.28101506]
[1736609974469,1.07471216,695.76,694.74,0.28101506]
[1736609975273,1.07471216,695.74,694.74,0.28101506]
[1736609978176,1.07471216,695.73,694.74,0.28101506]
[1736609980174,1.07471216,695.72,694.74,0.28101506]
[1736609980877,1.07471216,695.71,694.74,0.28101506]
[1736609985177,1.07471216,695.7,694.74,0.28101506]
[1736609987078,0.8895905,695.96,694.74,0.28101506]
[1736609987079,1.07471216,695.71,694.74,0.28101506]
[1736609990587,1.07471216,695.7,694.74,0.28101506]
[1736609992390,1.07471216,695.69,694.74,0.28101506]
[1736609995899,1.07471216,695.68,694.74,0.28101506]
[1736609998099,1.07471216,695.67,694.74,0.28101506]
[1736610002605,0.8895905,695.96,694.74,0.28101506]
[1736610002606,1.07471216,695.68,694.74,0.28101506]
[1736610003706,1.07471216,695.69,694.74,0.28101506]
[1736610005701,1.07471216,695.87,694.74,0.28101506]
[1736610006809,1.07471216,695.96,694.74,0.28101506]
[1736610007714,0.2873687,695.97,694.74,0.28101506]
[1736610009312,1.36208086,695.97,694.74,0.28101506]
[1736610010506,1.07471216,695.95,694.74,0.28101506]
[1736610012211,1.07471216,695.94,694.74,0.28101506]
[1736610014513,0.26427019,695.93,694.74,0.28101506]
[1736610015010,1.07471216,695.9,694.74,0.28101506]
[1736610015210,0.26427019,695.89,694.74,0.28101506]
[1736610016220,1.07471216,695.8,694.74,0.28101506]
[1736610017219,1.07471216,695.79,694.74,0.28101506]
[1736610020722,1.07471216,695.8,694.74,0.28101506]
[1736610021421,0.2873687,695.97,694.74,0.28101506]
[1736610021422,1.07471216,695.83,694.74,0.28101506]
[1736610022330,1.07471216,695.82,694.74,0.28101506]
[1736610026235,1.07471216,695.78,694.74,0.28101506]
[1736610030932,1.07471216,695.75,694.74,0.28101506]
[1736610033034,1.07471216,695.74,694.74,0.28101506]
[1736610034435,1.07471216,695.79,694.74,0.28101506]
[1736610036534,1.07471216,695.78,694.74,0.28101506]
[1736610037439,0.2873687,695.97,694.74,0.28101506]
[1736610037440,1.07471216,695.77,694.74,0.28101506]
[1736610040440,1.07471216,695.79,694.74,0.28101506]
[1736610041541,1.07471216,695.78,694.74,0.28101506]
[1736610042135,1.07471216,695.77,694.74,0.28101506]
[1736610044043,1.07471216,695.72,694.74,0.28101506]
[1736610045444,1.07471216,695.73,694.74,0.28101506]
[1736610047444,1.07471216,695.72,694.74,0.28101506]
[1736610048647,1.07471216,695.71,694.74,0.28101506]
[1736610049645,0.88978248,695.96,694.74,0.28101506]
[1736610049646,1.07471216,695.7,694.74,0.28101506]
[1736610050649,1.07471216,695.69,694.74,0.28101506]
[1736610053649,1.07471216,695.71,694.74,0.28101506]
[1736610054656,1.07471216,695.7,694.74,0.28101506]
[1736610056659,0.88978248,695.96,694.74,0.28101506]
[1736610056660,1.07471216,695.67,694.74,0.28101506]
[1736610057452,1.07471216,695.68,694.74,0.28101506]
[1736610060061,1.07471216,695.67,694.74,0.28101506]
[1736610062260,1.07471216,695.72,694.74,0.28101506]
[1736610063662,1.07471216,695.81,694.74,0.28101506]
[1736610064460,1.07471216,695.93,694.74,0.28101506]
[1736610065260,1.07471216,695.96,694.74,0.28101506]
[1736610066262,1.07471216,695.98,694.74,0.28101506]
[1736610067163,1.07471216,696.02,694.74,0.28101506]
[1736610068364,1.07471216,696.08,694.74,0.28101506]
[1736610069261,1.07471216,696.11,694.74,0.28101506]
[1736610070262,1.07471216,696.12,694.74,0.28101506]
[1736610070463,0.26420961,696.11,694.74,0.28101506]
[1736610070668,1.07471216,696.12,694.74,0.28101506]
[1736610070868,0.26420948,696.11,694.74,0.28101506]
[1736610071568,1.07471216,696.13,694.74,0.28101506]
[1736610071767,0.26420948,696.12,694.74,0.28101506]
[1736610072472,0.26420948,696.11,694.74,0.28101506]
[1736610072674,1.07471216,696.14,694.74,0.28101506]
[1736610072972,0.26421064,696.13,694.74,0.28101506]
[1736610073172,0.26421006,696.12,694.74,0.28101506]
[1736610073470,0.26421006,696.11,694.74,0.28101506]
[1736610073672,0.26421006,696.1,694.74,0.28101506]
[1736610073873,1.33892222,696.09,694.74,0.28101506]
[1736610074071,1.07471216,696.09,694.74,0.28101506]
[1736610075073,1.07471216,696.31,694.74,0.28101506]
[1736610076173,1.07471216,696.33,694.74,0.28101506]
[1736610078680,1.07471216,696.34,694.74,0.28101506]
[1736610079783,1.07471216,696.36,694.74,0.28101506]
[1736610080681,1.07471216,696.35,694.74,0.28101506]
[1736610081885,1.07471216,696.36,694.74,0.28101506]
[1736610082780,1.07471216,696.35,694.74,0.28101506]
[1736610083483,1.07471216,696.36,694.74,0.28101506]
[1736610083984,0.26422632,696.35,694.74,0.28101506]
[1736610084183,0.26422632,696.34,694.74,0.28101506]
[1736610084379,1.07471216,696.22,694.74,0.28101506]
[1736610084585,0.26422632,696.21,694.74,0.28101506]
[1736610085479,1.07471216,696.15,694.74,0.28101506]
[1736610085686,0.26422632,696.14,694.74,0.28101506]
[1736610085886,1.33893848,696.14,694.74,0.28101506]
[1736610086082,0.26422632,696.13,694.74,0.28101506]
[1736610086789,1.33893848,696.13,694.74,0.28101506]
[1736610086986,0.26422632,696.12,694.74,0.28101506]
[1736610087888,0.26422632,696.11,694.74,0.28101506]
[1736610088089,0.26422632,696.13,694.74,0.28101506]
[1736610088291,0.26422632,696.12,694.74,0.28101506]
[1736610088494,1.07471216,696.05,694.74,0.28101506]
[1736610088788,0.26422632,696.04,694.74,0.28101506]
[1736610089192,1.33893848,696.04,694.74,0.28101506]
[1736610089395,0.26422632,696.03,694.74,0.28101506]
[1736610089593,0.26421767,696.02,694.74,0.28101506]
[1736610089793,0.26421767,696.01,694.74,0.28101506]
[1736610089990,1.07471216,696.03,694.74,0.28101506]
[1736610090188,0.2642171,696.02,694.74,0.28101506]
[1736610090894,1.07471216,696.22,694.74,0.28101506]
[1736610090895,1.07471216,696.04,694.74,0.28101506]
[1736610092096,1.07471216,696.11,694.74,0.28101506]
[1736610093196,1.07471216,696.09,694.74,0.28101506]
[1736610093895,1.07471216,696.06,694.74,0.28101506]
[1736610095192,1.07471216,696.02,694.74,0.28101506]
[1736610097097,1.07471216,695.98,694.74,0.28101506]
[1736610098593,1.07471216,695.96,694.74,0.28101506]
[1736610099500,0.88750094,696.4,694.74,0.28101506]
[1736610099501,1.07471216,695.95,694.74,0.28101506]
[1736610101599,0.88750094,696.4,694.74,0.28101506]
[1736610101600,1.07471216,695.88,694.74,0.28101506]
[1736610104101,1.07471216,695.88,694.74,1.57163022]
[1736610107809,1.07471216,695.87,694.74,1.57163022]
[1736610110113,1.07471216,695.87,694.74,4.78909541]
[1736610110412,1.07471216,695.87,694.75,1.20175266]
[1736610110607,1.07471216,695.87,694.77,0.28786504]
[1736610114514,1.07471216,695.89,694.77,0.28786504]
[1736610114707,1.07471216,695.89,694.77,1.4896177]
[1736610115411,1.07471216,695.9,694.77,1.4896177]
[1736610116016,1.07471216,695.9,694.77,4.61615885]
[1736610116215,1.07471216,695.9,694.78,2.01571253]
[1736610116410,1.07471216,695.96,694.8,0.28785261]
[1736610117516,1.07471216,695.98,694.8,0.28785261]
[1736610118313,1.07471216,696.0,694.8,0.28785261]
[1736610119416,1.07471216,696.02,694.8,0.28785261]
[1736610123016,1.07471216,696.03,694.8,0.28785261]
[1736610123812,0.88750094,696.4,694.8,0.28785261]
[1736610123813,1.07471216,696.06,694.8,0.28785261]
[1736610126614,1.07471216,696.04,694.8,0.28785261]
[1736610130922,1.07471216,696.03,694.8,0.28785261]
[1736610132723,1.07471216,696.04,694.8,0.28785261]
[1736610133720,1.07471216,696.01,694.8,0.28785261]
[1736610134621,1.07471216,696.0,694.8,0.28785261]
[1736610135626,1.07471216,695.99,694.8,0.28785261]
[1736610136423,1.07471216,695.97,694.8,0.28785261]
[1736610137221,1.07471216,696.0,694.8,0.28785261]
[1736610139022,1.07471216,696.03,694.8,0.28785261]
[1736610140827,1.07471216,696.02,694.8,0.28785261]
[1736610141928,1.07471216,696.03,694.8,0.28785261]
[1736610143525,8.56913309,704.66,694.8,0.28785261]
[1736610143526,1.07471216,696.12,694.8,0.28785261]
[1736610144722,1.07471216,696.1,694.8,0.28785261]
[1736610145623,1.07471216,696.09,694.8,0.28785261]
[1736610147331,1.07471216,696.06,694.8,0.28785261]
[1736610148329,1.33893827,696.05,694.8,0.28785261]
[1736610148530,0.26422611,696.04,694.8,0.28785261]
[1736610149440,1.07471216,695.86,694.8,0.28785261]
[1736610150140,1.07471216,695.85,694.8,0.28785261]
[1736610152340,1.07471216,695.88,694.8,0.28785261]
[1736610153334,1.07471216,695.89,694.8,0.28785261]
[1736610153937,1.07471216,695.9,694.8,0.28785261]
[1736610154542,1.07471216,695.91,694.8,0.28785261]
[1736610155035,0.26426199,695.9,694.8,0.28785261]
[1736610155737,1.07471216,695.91,694.8,0.28785261]
[1736610155938,0.26426387,695.9,694.8,0.28785261]
[1736610157143,0.26427209,695.89,694.8,0.28785261]
[1736610157441,1.07471216,695.92,694.8,0.28785261]
[1736610157643,0.26427156,695.91,694.8,0.28785261]
[1736610157844,0.26427156,695.9,694.8,0.28785261]
[1736610158836,1.07471216,695.91,694.8,0.28785261]
[1736610159039,0.26426534,695.9,694.8,0.28785261]
[1736610159240,1.07471216,695.92,694.8,0.28785261]
[1736610159436,0.26426534,695.91,694.8,0.28785261]
[1736610160243,1.07471216,695.94,694.8,0.28785261]
[1736610160244,0.26426534,695.9,694.8,0.28785261]
[1736610160444,0.26426534,695.93,694.8,0.28785261]
[1736610160744,1.07471216,695.94,694.8,0.28785261]
[1736610160944,0.26425122,695.93,694.8,0.28785261]
[1736610161544,1.07471216,695.96,694.8,0.28785261]
[1736610161745,0.26424641,695.95,694.8,0.28785261]
[1736610162046,1.07471216,695.96,694.8,0.28785261]
[1736610162242,1.50156413,696.31,694.8,0.28785261]
[1736610162243,1.07471216,695.99,694.8,0.28785261]
[1736610163049,1.07471216,696.02,694.8,0.28785261]
[1736610163850,1.07471216,696.06,694.8,0.28785261]
[1736610164749,1.07471216,696.08,694.8,0.28785261]
[1736610165048,0.26421317,696.07,694.8,0.28785261]
[1736610165452,1.33892533,696.07,694.8,0.28785261]
[1736610165747,1.07471216,696.07,694.8,0.28785261]
[1736610166749,1.07471216,696.09,694.8,0.28785261]
[1736610167850,1.07471216,696.1,694.8,0.28785261]
[1736610168943,1.07471216,696.11,694.8,0.28785261]
[1736610169144,0.26420129,696.1,694.8,0.28785261]
[1736610169352,1.07471216,696.11,694.8,0.28785261]
[1736610169746,0.26420189,696.1,694.8,0.28785261]
[1736610169946,1.33891405,696.1,694.8,0.28785261]
[1736610170147,1.07471216,696.1,694.8,0.28785261]
[1736610171549,0.2642019,696.09,694.8,0.28785261]
[1736610172255,0.26421081,696.08,694.8,0.28785261]
[1736610172556,1.07471216,696.1,694.8,0.28785261]
[1736610172756,1.07471216,696.07,694.8,0.28785261]
[1736610173055,0.26420907,696.06,694.8,0.28785261]
[1736610173656,1.07471216,696.05,694.8,0.28785261]
[1736610173855,0.26420907,696.04,694.8,0.28785261]
[1736610174251,0.26420859,696.03,694.8,0.28785261]
[1736610174558,1.07471216,696.04,694.8,0.28785261]
[1736610174754,0.26420706,696.03,694.8,0.28785261]
[1736610174955,1.07471216,696.04,694.8,0.28785261]
[1736610175256,0.26420758,696.03,694.8,0.28785261]
[1736610175656,1.07471216,696.05,694.8,0.28785261]
[1736610175958,0.26420611,696.04,694.8,0.28785261]
[1736610177058,1.07471216,696.05,694.8,0.28785261]
[1736610177256,0.26420543,696.04,694.8,0.28785261]
[1736610179854,0.26420633,696.03,694.8,0.28785261]
[1736610180061,1.07471216,696.05,694.8,0.28785261]
[1736610180259,0.26420509,696.04,694.8,0.28785261]
[1736610181460,1.33891725,696.04,694.8,0.28785261]
[1736610181660,0.26420966,696.03,694.8,0.28785261]
[1736610181861,1.07471216,696.04,694.8,0.28785261]
[1736610182054,0.26420982,696.03,694.8,0.28785261]
[1736610182557,1.07471216,696.05,694.8,0.28785261]
[1736610182755,0.26420724,696.04,694.8,0.28785261]
[1736610183558,1.07471216,696.06,694.8,0.28785261]
[1736610183760,0.264206,696.05,694.8,0.28785261]
[1736610184557,0.2642135,696.04,694.8,0.28785261]
[1736610184756,0.2642135,696.03,694.8,0.28785261]
[1736610185060,1.07471216,696.06,694.8,0.28785261]
[1736610185463,1.07471216,696.03,694.8,0.28785261]
[1736610186262,1.07471216,696.08,694.8,0.28785261]
[1736610186661,0.26423423,696.07,694.8,0.28785261]
[1736610186962,1.07471216,696.05,694.8,0.28785261]
[1736610187863,1.07471216,696.04,694.8,0.28785261]
[1736610190068,1.96152796,696.38,694.8,0.28785261]
[1736610190069,1.07471216,696.03,694.8,0.28785261]
[1736610191468,1.07471216,696.05,694.8,0.28785261]
[1736610192967,1.50131581,696.39,694.8,0.28785261]
[1736610192968,1.07471216,696.08,694.8,0.28785261]
[1736610194074,1.07471216,696.06,694.8,0.28785261]
[1736610195273,1.07471216,696.05,694.8,0.28785261]
[1736610196273,1.07471216,696.01,694.8,0.28785261]
[1736610197276,1.07471216,696.04,694.8,0.28785261]
[1736610198276,1.07471216,696.03,694.8,0.28785261]
[1736610200878,1.07471216,696.01,694.8,0.28785261]
[1736610201769,1.07471216,696.02,694.8,0.28785261]
[1736610203878,1.07471216,695.95,694.8,0.28785261]
[1736610205679,1.07471216,695.94,694.8,0.28785261]
[1736610208983,1.07471216,695.95,694.8,0.28785261]
[1736610209983,1.07471216,695.99,694.8,0.28785261]
[1736610210781,1.07471216,696.03,694.8,0.28785261]
[1736610213490,1.07471216,696.04,694.8,0.28785261]
[1736610214483,1.07471216,696.1,694.8,0.28785261]
[1736610215483,1.07471216,696.09,694.8,0.28785261]
[1736610216489,1.07471216,696.11,694.8,0.28785261]
[1736610217589,1.07471216,696.13,694.8,0.28785261]
[1736610218789,1.07471216,696.14,694.8,0.28785261]
[1736610219088,0.26417073,696.13,694.8,0.28785261]
[1736610219490,1.07471216,696.14,694.8,0.28785261]
[1736610219690,0.2641678,696.13,694.8,0.28785261]
[1736610220091,1.07471216,696.14,694.8,0.28785261]
[1736610220292,0.2641678,696.13,694.8,0.28785261]
[1736610220487,1.07471216,696.16,694.8,0.28785261]
[1736610220692,0.26416546,696.15,694.8,0.28785261]
[1736610221386,0.26416546,696.14,694.8,0.28785261]
[1736610221589,0.26416546,696.13,694.8,0.28785261]
[1736610221791,0.26416546,696.12,694.8,0.28785261]
[1736610221990,0.26416546,696.11,694.8,0.28785261]
[1736610222190,1.07471216,696.17,694.8,0.28785261]
[1736610222390,1.33888813,696.16,694.8,0.28785261]
[1736610222590,0.26417597,696.15,694.8,0.28785261]
[1736610222992,0.26417451,696.14,694.8,0.28785261]
[1736610223187,0.26417451,696.13,694.8,0.28785261]
[1736610223396,0.26417451,696.12,694.8,0.28785261]
[1736610223589,1.07471216,696.16,694.8,0.28785261]
[1736610223894,0.26417132,696.15,694.8,0.28785261]
[1736610224595,0.26417132,696.14,694.8,0.28785261]
[1736610224789,0.26417132,696.13,694.8,0.28785261]
[1736610224992,0.26417132,696.12,694.8,0.28785261]
[1736610225193,1.07471216,696.17,694.8,0.28785261]
[1736610225394,0.26417602,696.16,694.8,0.28785261]
[1736610225595,1.07471216,696.17,694.8,0.28785261]
[1736610225792,0.26417614,696.16,694.8,0.28785261]
[1736610226998,1.07471216,696.18,694.8,0.28785261]
[1736610226999,0.26417614,696.15,694.8,0.28785261]
[1736610227198,1.07471216,696.18,694.8,0.28785261]
[1736610227199,0.26417614,696.14,694.8,0.28785261]
[1736610227498,0.26417614,696.13,694.8,0.28785261]
[1736610227699,0.26417614,696.12,694.8,0.28785261]
[1736610228000,1.07471216,696.17,694.8,0.28785261]
[1736610228199,0.26417592,696.16,694.8,0.28785261]
[1736610228401,1.07471216,696.17,694.8,0.28785261]
[1736610228402,0.26417371,696.15,694.8,0.28785261]
[1736610228604,0.26417371,696.14,694.8,0.28785261]
[1736610228901,0.26417371,696.13,694.8,0.28785261]
[1736610229103,1.07471216,696.17,694.8,0.28785261]
[1736610229304,0.26417582,696.16,694.8,0.28785261]
[1736610230905,1.33888798,696.16,694.8,0.28785261]
[1736610231104,0.26417582,696.15,694.8,0.28785261]
[1736610231302,1.07471216,696.16,694.8,0.28785261]
[1736610231504,0.26417384,696.15,694.8,0.28785261]
[1736610233808,1.338886,696.15,694.8,0.28785261]
[1736610234108,0.26417304,696.14,694.8,0.28785261]
[1736610234308,0.26417304,696.13,694.8,0.28785261]
[1736610234500,0.26417304,696.12,694.8,0.28785261]
[1736610234704,1.07471216,696.15,694.8,0.28785261]
[1736610234902,0.26417287,696.14,694.8,0.28785261]
[1736610235808,1.33888503,696.14,694.8,0.28785261]
[1736610236003,0.26417287,696.13,694.8,0.28785261]
[1736610236807,1.07471216,696.14,694.8,0.28785261]
[1736610237007,0.26417095,696.13,694.8,0.28785261]
[1736610237702,1.07471216,696.12,694.8,0.28785261]
[1736610239707,1.07471216,696.1,694.8,0.28785261]
[1736610240410,1.07471216,696.09,694.8,0.28785261]
[1736610241109,1.07471216,696.07,694.8,0.28785261]
[1736610242417,1.07471216,696.05,694.8,0.28785261]
[1736610243211,1.07471216,696.03,694.81,1.29061516]
[1736610243415,1.07471216,696.03,694.83,0.28784019]
[1736610244616,1.07471216,696.01,694.83,1.57845535]
[1736610245719,1.07471216,696.0,694.84,1.29061516]
[1736610246115,1.07471216,696.0,694.86,0.28782776]
[1736610246721,1.07471216,696.02,694.86,0.28782776]
[1736610248617,1.07471216,696.01,694.86,0.28782776]
[1736610249928,1.07471216,695.99,694.86,0.28782776]
[1736610254526,1.07471216,696.0,694.86,0.28782776]
[1736610255425,1.07471216,696.01,694.86,0.28782776]
[1736610256425,1.07471216,695.98,694.86,1.57844292]
[1736610257528,1.07471216,695.97,694.87,1.29061516]
[1736610257723,1.07471216,695.97,694.89,0.28781533]
[1736610261829,1.07471216,695.96,694.89,0.28781533]
[1736610265125,0.88786328,696.45,694.89,0.28781533]
[1736610265126,1.07471216,695.92,694.89,0.28781533]
[1736610266530,1.07471216,695.91,694.89,0.28781533]
[1736610267332,1.07471216,695.93,694.89,0.28781533]
[1736610268132,1.5013266,696.34,694.89,0.28781533]
[1736610268133,1.07471216,695.92,694.89,0.28781533]
[1736610268936,1.07471216,695.94,694.89,0.28781533]
[1736610269634,1.07471216,695.93,694.89,0.28781533]
[1736610270635,1.07471216,695.95,694.89,0.28781533]
[1736610271529,1.07471216,695.96,694.89,0.28781533]
[1736610272334,1.07471216,695.95,694.89,0.28781533]
[1736610273530,1.07471216,695.97,694.89,0.28781533]
[1736610274337,1.07471216,695.98,694.89,0.28781533]
[1736610277243,0.26423228,695.97,694.89,0.28781533]
[1736610277443,1.07471216,695.98,694.89,0.28781533]
[1736610277643,0.264232,695.97,694.89,0.28781533]
[1736610278044,0.26423444,695.96,694.89,0.28781533]
[1736610278639,1.07471216,695.97,694.89,0.28781533]
[1736610280345,1.07471216,695.98,694.89,0.28781533]
[1736610280839,1.07471216,695.99,694.89,0.28781533]
[1736610281143,0.26422608,695.98,694.89,0.28781533]
[1736610282646,1.07471216,695.99,694.89,0.28781533]
[1736610282842,0.26422526,695.98,694.89,0.28781533]
[1736610283847,1.07471216,695.99,694.89,0.28781533]
[1736610284348,0.26423148,695.98,694.89,0.28781533]
[1736610284543,1.07471216,696.0,694.89,0.28781533]
[1736610284746,0.2642269,695.99,694.89,0.28781533]
[1736610285143,1.33893906,695.99,694.89,0.28781533]
[1736610285347,0.2642269,695.98,694.89,0.28781533]
[1736610285548,1.07471216,695.99,694.89,0.28781533]
[1736610285748,0.26422781,695.98,694.89,0.28781533]
[1736610288054,1.33893997,695.98,694.89,0.28781533]
[1736610288251,1.07471216,695.98,694.89,0.28781533]
[1736610288452,0.26422972,695.97,694.89,0.28781533]
[1736610288757,1.07471216,695.98,694.89,0.28781533]
[1736610290251,1.07471216,696.0,694.89,0.28781533]
[1736610291257,1.07471216,695.99,694.89,0.28781533]
[1736610292254,1.07471216,695.98,694.89,0.28781533]
[1736610293156,1.07471216,695.97,694.89,0.28781533]
[1736610294952,1.07471216,695.96,694.89,0.28781533]
[1736610296755,1.07471216,695.95,694.89,0.28781533]
[1736610297760,1.07471216,695.93,694.89,0.28781533]
[1736610298763,1.07471216,695.91,694.89,0.28781533]
[1736610299659,1.07471216,695.88,694.89,0.28781533]
[1736610300561,1.07471216,695.86,694.89,0.28781533]
[1736610301464,1.07471216,695.85,694.89,0.28781533]
[1736610302360,1.07471216,695.84,694.89,0.28781533]
[1736610303167,1.07471216,695.85,694.89,0.28781533]
[1736610308973,1.07471216,695.84,694.89,0.28781533]
[1736610312674,1.07471216,695.86,694.89,0.28781533]
[1736610313873,1.07471216,695.87,694.89,0.28781533]
[1736610314669,1.07471216,695.84,694.89,0.28781533]
[1736610315874,0.88770323,696.32,694.89,0.28781533]
[1736610315875,1.07471216,695.86,694.89,0.28781533]
[1736610317277,1.07471216,695.85,694.89,0.28781533]
[1736610323884,1.07471216,695.87,694.89,0.28781533]
[1736610325181,1.07471216,695.88,694.89,0.28781533]
[1736610326385,1.07471216,695.87,694.89,0.28781533]
[1736610328890,1.07471216,695.88,694.89,0.28781533]
[1736610329991,1.62617217,696.33,694.89,0.28781533]
[1736610329992,1.07471216,695.86,694.89,0.28781533]
[1736610330894,1.07471216,695.88,694.89,0.28781533]
[1736610331689,1.07471216,695.85,694.89,0.28781533]
[1736610332191,1.07471216,695.86,694.89,0.28781533]
[1736610333191,1.07471216,696.2,694.89,0.28781533]
[1736610333788,1.07471216,696.21,694.89,0.28781533]
[1736610335186,1.50157493,696.46,694.89,0.28781533]
[1736610335992,0.28717065,696.45,694.89,0.28781533]
[1736610341903,1.36188281,696.45,694.89,0.28781533]
[1736610344002,1.07471216,696.39,694.89,0.28781533]
[1736610345103,1.07471216,696.28,694.89,0.28781533]
[1736610346302,0.28717065,696.45,694.89,0.28781533]
[1736610346303,1.07471216,696.2,694.89,0.28781533]
[1736610347406,1.07471216,696.21,694.89,0.28781533]
[1736610349406,1.07471216,696.12,694.89,0.28781533]
[1736610350506,1.07471216,696.08,694.89,0.28781533]
[1736610352507,1.50149934,696.35,694.89,0.28781533]
[1736610352508,1.07471216,696.01,694.89,0.28781533]
[1736610353508,1.07471216,696.04,694.89,0.28781533]
[1736610354602,1.07471216,695.99,694.89,0.28781533]
[1736610356309,1.07471216,695.97,694.89,0.28781533]
[1736610357211,1.07471216,695.98,694.89,0.28781533]
[1736610359107,1.07471216,695.97,694.89,0.28781533]
[1736610359905,1.07471216,696.02,694.89,0.28781533]
[1736610362014,1.07471216,695.99,694.89,0.28781533]
[1736610362813,1.07471216,696.04,694.89,0.28781533]
[1736610363819,1.07471216,696.05,694.89,0.28781533]
[1736610367022,1.07471216,696.04,694.89,0.28781533]
[1736610368824,1.33891423,696.03,694.89,0.28781533]
[1736610369024,1.07471216,696.03,694.89,0.28781533]
[1736610370124,1.07471216,695.96,694.89,0.28781533]
[1736610371219,1.07471216,696.06,694.89,0.28781533]
[1736610372127,1.07471216,696.07,694.89,0.28781533]
[1736610372926,1.07471216,696.08,694.89,0.28781533]
[1736610373927,1.07471216,696.11,694.89,0.28781533]
[1736610374629,1.07471216,696.1,694.89,0.28781533]
[1736610376527,1.07471216,696.11,694.89,0.28781533]
[1736610377629,1.07471216,696.09,694.89,0.28781533]
[1736610379831,1.07471216,696.07,694.89,0.28781533]
[1736610380731,1.33892735,696.06,694.89,0.28781533]
[1736610380925,1.07471216,696.06,694.89,0.28781533]
[1736610381632,0.26422617,696.05,694.89,0.28781533]
[1736610381830,1.07471216,695.99,694.89,0.28781533]
[1736610382935,1.07471216,695.96,694.89,0.28781533]
[1736610383632,0.26425563,695.95,694.89,0.28781533]
[1736610383828,1.07471216,695.92,694.89,0.28781533]
[1736610385828,1.07471216,695.89,694.89,0.28781533]
[1736610387034,1.07471216,695.91,694.89,0.28781533]
[1736610388033,1.07471216,695.92,694.89,0.28781533]
[1736610389131,0.88977305,696.33,694.89,0.28781533]
[1736610389132,1.07471216,695.93,694.89,0.28781533]
[1736610390136,1.07471216,695.94,694.89,0.28781533]
[1736610390931,1.07471216,695.96,694.89,0.28781533]
[1736610391436,0.26427771,695.95,694.89,0.28781533]
[1736610392237,0.26427771,695.94,694.89,0.28781533]
[1736610392438,1.07471216,695.97,694.89,0.28781533]
[1736610392738,0.26427589,695.96,694.89,0.28781533]
[1736610393538,1.07471216,695.97,694.89,0.28781533]
[1736610393736,0.2642695,695.96,694.89,0.28781533]
[1736610394140,0.2642695,695.96,694.34,3.22513146]
[1736610394740,1.07471216,695.95,694.36,1.29061516]
[1736610394940,0.2642695,695.94,694.36,1.29061516]
[1736610395540,1.07471216,695.92,694.34,4.51574662]
[1736610395740,0.2642695,695.91,694.34,4.51574662]
[1736610396741,0.2642695,695.91,694.38,1.29061516]
[1736610396942,0.2642695,695.9,694.38,1.29061516]
[1736610397240,0.2642695,695.89,694.38,1.29061516]
[1736610397442,0.2642695,695.88,694.36,1.29061516]
[1736610397642,0.2642695,695.87,694.36,1.29061516]
[1736610397842,0.2642695,695.86,694.36,1.29061516]
[1736610398138,0.2642695,695.85,694.36,1.29061516]
[1736610398341,0.2642695,695.84,694.36,1.29061516]
[1736610398543,1.07471216,695.93,694.36,4.51574662]
[1736610398735,0.26427713,695.92,694.36,4.51574662]
[1736610398935,1.07471216,695.93,694.36,4.51574662]
[1736610399242,0.26427708,695.92,694.36,3.22513146]
[1736610399444,0.26427708,695.91,694.37,3.13462478]
[1736610399645,1.07471216,695.94,694.37,6.35975624]
[1736610399942,0.26427708,695.93,694.38,3.22513146]
[1736610400146,0.26427708,695.92,694.38,3.22513146]
[1736610400342,0.26427708,695.91,694.38,3.22513146]
[1736610400540,0.26427708,695.9,694.38,3.22513146]
[1736610400736,0.26427708,695.89,694.38,3.22513146]
[1736610401139,0.26427708,695.89,694.33,3.22513146]
[1736610402035,0.26427708,695.88,694.33,3.22513146]
[1736610402240,0.26427708,695.87,694.33,3.22513146]
[1736610402535,0.26427708,695.86,694.33,3.22513146]
[1736610402740,1.07471216,695.93,694.33,3.22513146]
[1736610402939,0.26428776,695.92,694.26,3.22513146]
[1736610403344,0.26428776,695.91,694.26,3.22513146]
[1736610403540,0.26428776,695.9,694.26,3.22513146]
[1736610403739,0.26428776,695.89,694.26,3.22513146]
[1736610403940,0.26428776,695.88,694.26,3.22513146]
[1736610404142,1.07471216,695.94,694.26,3.22513146]
[1736610404143,0.26428776,695.87,694.26,3.22513146]
[1736610404446,0.26428776,695.86,694.26,3.22513146]
[1736610404745,0.26428776,695.85,694.26,3.22513146]
[1736610404939,0.26428776,695.84,694.26,3.22513146]
[1736610405244,1.07471216,695.93,694.26,3.22513146]
[1736610405446,1.50169912,696.2,694.26,3.22513146]
[1736610405447,1.33901366,695.92,694.26,3.22513146]
[1736610405639,0.2643015,695.91,694.26,3.22513146]
[1736610406647,0.2643015,695.91,694.21,3.22513146]
[1736610407147,0.26429978,695.9,694.21,3.22513146]
[1736610407347,0.26429978,695.89,694.21,3.22513146]
[1736610407647,0.26429978,695.88,694.21,3.22513146]
[1736610407841,1.07471216,695.93,694.21,3.22513146]
[1736610408045,0.26430544,695.92,694.21,3.22513146]
[1736610409550,1.3390176,695.92,694.21,3.22513146]
[1736610409752,1.07471216,695.92,694.21,3.22513146]